[Event "33rd ECCC Open 2017"]
[Site "Antalya"]
[Date "2017.10.14"]
[Round "7"]
[White "Makolli, Perparim"]
[Black "Delaney, Killian"]
[Result "0-1"]
[ECO "B17"]
[WhiteElo "2333"]
[BlackElo "2202"]
[Annotator "NA"]
[PlyCount "88"]
[EventType "team-tourn"]
[EventCountry "TUR"]
[SourceTitle "playchess.com"]
[Source "ChessBase"]
[SourceQuality "1"]
[WhiteTeam "Hasan Pristina"]
[BlackTeam "Gonzaga"]
[TimeControl "40/5400+30:1800+30"]

1. e4 {[%emt 0:01:30]} c6 {[%emt 0:01:00]} 2. d4 {[%emt 0:00:30]} d5 {[%emt 0:00:00]} 3. Nc3 {[%emt 0:00:30]} dxe4 {[%emt 0:00:00]} 4. Nxe4 {[%emt 0:00:00]} Nd7 {[%emt 0:00:30]} 5. Nf3 {[%emt 0:01:00]} Ngf6 {[%emt 0:00:00]} 6. Ng3 {[%emt 0:00:30]} c5 {[%emt 0:00:00]} 7. Bc4 {[%emt 0:01:30]} b5 {[%emt 0:09:30]} 8. Be2 {[%emt 0:03:30]} e6 {[%emt 0:03:30]} 9. O-O {[%emt 0:02:30]} a6 {[%emt 0:00:30]} 10. a4 {[%emt 0:09:30]} bxa4 {[%emt 0:00:00]} 11. c4 {[%emt 0:00:30]} cxd4 {[%emt 0:02:00]} 12. Nxd4 {[%emt 0:02:30]} Bb7 {[%emt 0:00:30]} 13. Qxa4 {[%emt 0:04:30]} Qb6 {[%emt 0:03:30]} 14. Nc2 {[%emt 0:06:30]} Bc6 {[%emt 0:02:30]} 15. Qa5 {[%emt 0:03:30]} Qb7 {[%emt 0:00:00]} 16. f3 {[%emt 0:00:30]} Bc5+ {[%emt 0:08:00]} 17. Kh1 {[%emt 0:00:30]} h5 {[%emt 0:02:30]} 18. Bd3 $17 {[%emt 0:26:30]} (18. b4 $15 Bb6 19. Qg5) 18... h4 {[%emt 0:01:30]} 19. Ne2 {[%emt 0:00:30]} h3 {[%emt 0:00:30]} 20. Ncd4 {[%emt 0:05:30]} hxg2+ {[%emt 0:09:30]} 21. Kxg2 {[%emt 0:00:00]} Bxd4 {[%emt 0:08:30]} 22. Nxd4 {[%emt 0:00:00]} Qb8 {[%emt 0:00:30]} 23. Rh1 {[%emt 0:02:30]} Qd6 {[%emt 0:01:30]} 24. Nxc6 {[%emt 0:07:30]} Qxc6 {[%emt 0:06:30]} 25. Be3 {[%emt 0:05:45]} Rh5 {[%emt 0:00:30]} 26. Qa4 {[%emt 0:02:50]} Qb7 {[%emt 0:01:30]} 27. b4 {[%emt 0:00:31]} Kf8 {[%emt 0:01:30]} 28. Rae1 {[%emt 0:03:12]} Ne5 {[%emt 0:00:30]} 29. Be2 {[%emt 0:01:00]} Neg4 {[%emt 0:00:30]} 30. Bc5+ {[%emt 0:00:30]} Kg8 {[%emt 0:01:30]} 31. h3 {[%emt 0:03:03]} Ne5 {[%emt 0:03:30]} 32. Bd4 {[%emt 0:00:19]} Ng6 {[%emt 0:00:30]} 33. Bxf6 {[%emt 0:01:52]} gxf6 {[%emt 0:00:30]} 34. Kf2 {[%emt 0:00:00]} a5 {[%emt 0:03:30]} 35. Ra1 {[%emt 0:01:22]} Rb8 {[%emt 0:00:30]} 36. bxa5 {[%emt 0:01:48]} Qa7+ {[%emt 0:00:30]} 37. Kf1 {[%emt 0:00:00]} Rb2 {[%emt 0:00:30]} 38. Rg1 {[%emt 0:00:44]} Rxh3 {[%emt 0:01:30]} 39. c5 {[%emt 0:03:12]} Qxc5 {[%emt 0:07:30]} 40. Qe4 {[%emt 0:00:00]} f5 {[%emt 0:01:30]} 41. Rxg6+ {[%emt 0:07:22]} fxg6 {[%emt 0:00:30]} 42. Qxe6+ {[%emt 0:00:30]} Kg7 {[%emt 0:02:30]} 43. Kg2 {[%emt 0:05:30]} Rh5 {[%emt 0:00:30]} 44. Rd1 {[%emt 0:05:29]} Rh2+ {[%emt 0:06:30]} 0-1

[Event "33rd ECCC Open 2017"]
[Site "Antalya"]
[Date "2017.10.14"]
[Round "7"]
[White "Salihu, Sami"]
[Black "Ashton, Adam G"]
[Result "0-1"]
[ECO "D37"]
[WhiteElo "2187"]
[BlackElo "2347"]
[Annotator "NA"]
[PlyCount "116"]
[EventType "team-tourn"]
[EventCountry "TUR"]
[SourceTitle "playchess.com"]
[Source "ChessBase"]
[SourceQuality "1"]
[WhiteTeam "Dardania"]
[BlackTeam "3CS Oldham"]
[TimeControl "40/5400+30:1800+30"]

1. d4 {[%emt 0:00:30]} d5 {[%emt 0:01:00]} 2. Nf3 {[%emt 0:00:00]} Nf6 {[%emt 0:00:00]} 3. c4 {[%emt 0:00:00]} e6 {[%emt 0:01:00]} 4. Nc3 {[%emt 0:00:30]} Be7 {[%emt 0:00:30]} 5. Bf4 {[%emt 0:00:30]} O-O {[%emt 0:00:30]} 6. e3 {[%emt 0:00:00]} Nbd7 {[%emt 0:00:00]} 7. c5 {[%emt 0:00:00] D37: Queen's Gambit Declined: 5 Bf4} Ne4 {[%emt 0:00:00]} 8. Nb5 $146 {[%emt 0:00:30]} ({Predecessor:} 8. Rc1 Nxc3 9. Rxc3 b6 10. c6 Nf6 11. a3 a5 12. Bd3 Ne4 13. Rc1 f6 14. Qc2 f5 {1-0 (40) Aronian,L (2793)-So,W (2812) Stavanger 2017}) 8... c6 {[%emt 0:09:30]} 9. Bc7 {[%emt 0:00:30]} Qe8 {[%emt 0:00:00]} 10. Nd6 {[%emt 0:00:30]} Nxd6 {[%emt 0:09:00]} 11. cxd6 {[%emt 0:00:30]} Bd8 {[%emt 0:00:30]} 12. Bd3 {[%emt 0:00:30]} Bxc7 {[%emt 0:03:30]} 13. dxc7 {[%emt 0:00:30]} e5 {[%emt 0:07:30]} 14. dxe5 {[%emt 0:01:30]} Nxe5 {[%emt 0:03:30]} 15. Ng5 {[%emt 0:00:30]} Nxd3+ {[%emt 0:03:30]} 16. Qxd3 {[%emt 0:00:00]} g6 {[%emt 0:01:30]} 17. h4 {[%emt 0:00:00]} Qe7 {[%emt 0:04:30]} 18. O-O-O {[%emt 0:02:30]} f6 {[%emt 0:09:30]} 19. Nf3 {[%emt 0:00:30]} Qc5+ {[%emt 0:05:30]} 20. Qc3 {[%emt 0:00:30]} Qxc3+ {[%emt 0:01:30]} 21. bxc3 {[%emt 0:00:00]} Rf7 {[%emt 0:02:30]} 22. e4 {[%emt 0:00:00]} Rxc7 {[%emt 0:00:30]} 23. exd5 {[%emt 0:00:30]} cxd5 {[%emt 0:00:30]} 24. Kb2 {[%emt 0:01:30]} Be6 {[%emt 0:00:30]} 25. Rhe1 {[%emt 0:00:30]} Bf7 {[%emt 0:00:30]} 26. Nd4 {[%emt 0:00:00]} Rd8 {[%emt 0:02:30]} 27. Rd3 {[%emt 0:00:00]} a6 $11 {[%emt 0:01:30]} (27... Re8 $17 28. Rxe8+ Bxe8) 28. Rde3 {[%emt 0:00:30]} Rdd7 {[%emt 0:01:30]} 29. g4 {[%emt 0:01:30]} Kf8 {[%emt 0:03:30]} 30. f4 {[%emt 0:00:30]} Re7 {[%emt 0:00:30]} 31. Kb3 {[%emt 0:00:30]} Rxe3 {[%emt 0:01:30]} 32. Rxe3 {[%emt 0:00:00]} Re7 {[%emt 0:01:30]} 33. Rxe7 {[%emt 0:00:00]} Kxe7 {[%emt 0:00:00]} 34. Kb4 {[%emt 0:00:30]} Kd6 {[%emt 0:04:00]} 35. g5 {[%emt 0:00:30]} fxg5 {[%emt 0:02:30]} 36. hxg5 {[%emt 0:00:00]} Be8 {[%emt 0:03:43]} 37. Kb3 {[%emt 0:09:00]} Bd7 {[%emt 0:00:55]} 38. Kb4 {[%emt 0:02:30]} b6 {[%emt 0:00:13]} 39. a3 {[%emt 0:02:30]} a5+ {[%emt 0:00:56]} 40. Kb3 {[%emt 0:00:00]} Kc5 {[%emt 0:01:43]} 41. Nf3 {[%emt 0:01:00]} Be6 {[%emt 0:03:30]} 42. Nd4 {[%emt 0:01:30]} Bg4 {[%emt 0:00:00]} 43. Kc2 {[%emt 0:01:30]} Kc4 {[%emt 0:00:00]} 44. Nc6 {[%emt 0:01:30]} Bf5+ {[%emt 0:01:30]} 45. Kb2 {[%emt 0:00:30]} Kd3 {[%emt 0:00:30]} 46. Ne7 {[%emt 0:04:30]} Be6 {[%emt 0:01:30]} 47. f5 {[%emt 0:00:30]} gxf5 {[%emt 0:00:30]} 48. g6 {[%emt 0:00:00]} hxg6 {[%emt 0:00:30]} 49. Nxg6 {[%emt 0:00:00]} Ke3 {[%emt 0:00:30]} 50. Nf8 {[%emt 0:02:30]} Bc8 {[%emt 0:00:30]} 51. Ng6 {[%emt 0:00:30]} f4 {[%emt 0:00:30]} 52. c4 {[%emt 0:02:30]} f3 {[%emt 0:01:30]} 53. Ne7 {[%emt 0:00:00]} f2 {[%emt 0:01:30]} 54. Nxc8 {[%emt 0:00:00]} f1=Q {[%emt 0:00:30]} 55. cxd5 {[%emt 0:01:30]} Qb5+ {[%emt 0:00:00]} 56. Ka1 {[%emt 0:00:30]} Qxd5 {[%emt 0:00:00]} 57. Na7 {[%emt 0:00:30]} Kd2 {[%emt 0:00:30]} 58. a4 {[%emt 0:00:00]} Qd4+ {[%emt 0:00:30]} 0-1

[Event "33rd ECCC Open 2017"]
[Site "Antalya"]
[Date "2017.10.14"]
[Round "7"]
[White "Visintin, Roberto"]
[Black "Burke, Kevin A"]
[Result "1-0"]
[ECO "C01"]
[WhiteElo "2055"]
[BlackElo "1770"]
[Annotator "NA"]
[PlyCount "51"]
[EventType "team-tourn"]
[EventCountry "TUR"]
[SourceTitle "playchess.com"]
[Source "ChessBase"]
[SourceQuality "1"]
[WhiteTeam "Bonnevoie"]
[BlackTeam "Benildus"]
[TimeControl "40/5400+30:1800+30"]

1. e4 {[%emt 0:00:30]} e6 {[%emt 0:01:00]} 2. d4 {[%emt 0:00:30]} d5 {[%emt 0:00:00]} 3. Nc3 {[%emt 0:00:00]} Bb4 {[%emt 0:00:00]} 4. exd5 {[%emt 0:02:00]} exd5 {[%emt 0:00:30]} 5. Bd3 {[%emt 0:00:00]} Ne7 {[%emt 0:00:30]} 6. Nge2 {[%emt 0:01:00]} O-O {[%emt 0:06:30]} 7. O-O {[%emt 0:00:30]} c6 {[%emt 0:08:30]} 8. Ng3 {[%emt 0:09:30]} Nd7 {[%emt 0:07:30]} 9. Nce2 {[%emt 0:03:30]} Ng6 {[%emt 0:05:30]} 10. Nf5 {[%emt 0:02:30]} Re8 {[%emt 0:06:30]} 11. Neg3 {[%emt 0:03:30]} Ndf8 {[%emt 0:01:30]} 12. Qh5 {[%emt 0:06:30]} Qc7 {[%emt 0:03:30]} 13. c3 {[%emt 0:05:30]} Ba5 {[%emt 0:05:30]} 14. f4 {[%emt 0:04:30]} Bd7 {[%emt 0:05:30]} 15. Nxg7 {[%emt 0:05:30]} Kxg7 {[%emt 0:07:30]} 16. f5 {[%emt 0:00:30]} Bxf5 {[%emt 0:02:30]} 17. Nxf5+ {[%emt 0:04:30]} Kg8 {[%emt 0:10:30]} 18. Nh6+ {[%emt 0:02:30]} Kg7 {[%emt 0:01:30]} 19. Rxf7+ {[%emt 0:02:30]} Qxf7 {[%emt 0:00:30]} 20. Nxf7 {[%emt 0:00:00]} Kxf7 {[%emt 0:00:00]} 21. Qf5+ {[%emt 0:07:00]} Kg7 {[%emt 0:03:00]} 22. Bg5 {[%emt 0:02:30]} Bd8 {[%emt 0:01:30]} 23. Rf1 {[%emt 0:02:30]} Bxg5 {[%emt 0:00:30]} 24. Qxg5 {[%emt 0:00:00]} Re6 {[%emt 0:02:51]} 25. h4 {[%emt 0:01:00]} Kh8 {[%emt 0:00:13]} 26. h5 {[%emt 0:00:30]} 1-0

[Event "33rd ECCC Open 2017"]
[Site "Antalya"]
[Date "2017.10.14"]
[Round "7"]
[White "Mathioulakis, Fanis"]
[Black "Vihinen, Teemu"]
[Result "0-1"]
[ECO "A25"]
[WhiteElo "1902"]
[BlackElo "2164"]
[Annotator "NA"]
[PlyCount "72"]
[EventType "team-tourn"]
[EventCountry "TUR"]
[SourceTitle "playchess.com"]
[Source "ChessBase"]
[SourceQuality "1"]
[WhiteTeam "Chania"]
[BlackTeam "Etela-Vantaan"]
[TimeControl "40/5400+30:1800+30"]

1. c4 {[%emt 0:00:30]} e5 {[%emt 0:01:00]} 2. Nc3 {[%emt 0:00:00]} Nc6 {[%emt 0:00:30]} 3. g3 {[%emt 0:00:00]} g6 {[%emt 0:00:00]} 4. Bg2 {[%emt 0:00:30]} Bg7 {[%emt 0:00:00]} 5. e3 {[%emt 0:00:00]} d6 {[%emt 0:00:30]} 6. Nge2 {[%emt 0:00:00]} Be6 {[%emt 0:00:30]} 7. b3 {[%emt 0:00:30]} Nge7 {[%emt 0:03:30]} 8. d4 {[%emt 0:05:30]} exd4 {[%emt 0:22:30]} 9. exd4 {[%emt 0:03:30]} Bf5 {[%emt 0:14:30]} 10. a3 {[%emt 0:11:30]} Qd7 {[%emt 0:01:30]} 11. h4 {[%emt 0:01:30]} O-O {[%emt 0:02:30]} 12. O-O {[%emt 0:10:30]} Bg4 {[%emt 0:08:30]} 13. f3 {[%emt 0:03:30]} Bh3 {[%emt 0:02:30]} 14. Be3 {[%emt 0:00:30]} Bxg2 {[%emt 0:01:30]} 15. Kxg2 {[%emt 0:00:30]} d5 {[%emt 0:02:30]} 16. c5 {[%emt 0:04:30]} Nf5 {[%emt 0:00:30]} 17. Bf2 {[%emt 0:00:30]} Bh6 {[%emt 0:01:30]} 18. Qd3 {[%emt 0:07:30]} Rfe8 {[%emt 0:00:30]} 19. f4 {[%emt 0:01:30]} Bg7 {[%emt 0:01:30]} 20. Rad1 {[%emt 0:02:30]} Re7 {[%emt 0:03:30]} 21. Qf3 {[%emt 0:10:30]} Rae8 {[%emt 0:01:30]} 22. Rd3 {[%emt 0:01:30]} Re4 {[%emt 0:03:30]} 23. Rfd1 {[%emt 0:06:30]} Nd8 {[%emt 0:02:30]} 24. R1d2 {[%emt 0:02:30]} c6 {[%emt 0:00:30]} 25. g4 {[%emt 0:01:30]} Nh6 {[%emt 0:00:30]} 26. Ng3 {[%emt 0:02:30]} Qxg4 {[%emt 0:07:21]} 27. Ncxe4 {[%emt 0:03:58]} dxe4 {[%emt 0:00:35]} 28. Qxg4 {[%emt 0:00:54]} Nxg4 {[%emt 0:00:07]} 29. Re2 {[%emt 0:00:30]} f5 {[%emt 0:01:31]} 30. Rd1 {[%emt 0:07:32]} Ne6 {[%emt 0:00:21]} 31. Ree1 {[%emt 0:03:18]} Nxf4+ {[%emt 0:00:15]} 32. Kf1 {[%emt 0:00:59]} Nh2+ {[%emt 0:01:23]} 33. Kg1 {[%emt 0:00:06]} Nf3+ {[%emt 0:00:00]} 34. Kf1 {[%emt 0:00:11]} Nxe1 {[%emt 0:00:19]} 35. Bxe1 {[%emt 0:00:37]} Rd8 {[%emt 0:00:46]} 36. Bc3 {[%emt 0:00:33]} Nd5 {[%emt 0:00:13]} 0-1